bitfinex-derivatives/quotes_ETHF0:USTF0_20250712
["timestamp","ask_amount","ask_price","bid_price","bid_amount"]
[1752331634552,5.4809,2936.0,2935.9,5.82929]
[1752331635661,5.4809,2936.0,2935.9,6.92003412]
[1752331637459,5.4809,2936.0,2935.9,5.82929]
[1752331638164,8.6138,2936.2,2936.1,5.73434]
[1752331640363,9.5964288,2936.2,2936.1,5.73434]
[1752331641461,8.6138,2936.2,2936.1,5.73434]
[1752331642063,4.4179,2936.4,2936.3,5.73429]
[1752331642364,5.40069495,2936.4,2936.3,5.73429]
[1752331642561,6.38879495,2936.4,2936.3,5.73429]
[1752331643259,6.38879495,2936.4,2936.0,1.70241]
[1752331643260,5.406,2936.1,2936.0,0.68095]
[1752331643459,9.70454412,2936.1,2936.0,0.68095]
[1752331643660,8.6138,2936.1,2936.0,3.25425]
[1752331644465,8.6138,2936.1,2936.0,5.73435]
[1752331650265,8.6138,2936.1,2936.0,3.25425]
[1752331651260,8.6138,2936.1,2936.0,0.68095]
[1752331652365,5.406,2935.9,2935.8,5.73441]
[1752331652570,5.406,2935.9,2935.8,29.35341]
[1752331653770,5.406,2935.9,2935.8,25.96061]
[1752331653970,6.08699,2935.9,2935.8,25.96061]
[1752331654171,6.08702,2935.8,2935.7,0.68102]
[1752331654372,8.6138,2935.8,2935.7,24.29802]
[1752331654673,8.6138,2935.8,2935.7,26.87132]
[1752331655270,8.6138,2935.8,2935.7,29.35142]
[1752331657569,8.6138,2935.8,2935.7,26.87132]
[1752331658273,8.6138,2935.8,2935.7,24.29802]
[1752331658768,8.6138,2935.8,2935.7,25.20872]
[1752331658974,8.6138,2935.8,2935.7,26.87132]
[1752331659375,8.6138,2935.8,2935.7,24.29802]
[1752331659771,8.6138,2935.8,2935.7,26.87132]
[1752331660178,9.29481,2935.8,2935.7,25.96062]
[1752331660377,10.27748682,2935.8,2935.7,24.29802]
[1752331660674,9.59647682,2935.8,2935.7,24.29802]
[1752331660978,9.59647682,2935.8,2935.7,26.87132]
[1752331661875,10.27748682,2935.8,2935.7,25.96062]
[1752331662177,10.27748682,2935.8,2935.7,24.29802]
[1752331664179,9.29481,2935.8,2935.7,24.29802]
[1752331664473,8.6138,2935.8,2935.7,25.96062]
[1752331664680,8.6138,2935.8,2935.7,29.52842]
[1752331665282,8.6138,2935.8,2935.7,5.91142]
[1752331666381,9.29481,2935.8,2935.7,5.91142]
[1752331666579,8.6138,2935.8,2935.7,5.91142]
[1752331667877,2.6565,2936.1,2935.7,7.00216412]
[1752331668078,2.6565,2936.1,2935.6,23.605]
[1752331668079,7.6361,2936.1,2936.0,7.05640412]
[1752331668283,4.19245335,2936.1,2936.0,30.65740412]
[1752331668483,3.2078,2936.1,2936.0,30.65740412]
[1752331672985,7.6361,2936.4,2936.3,2.32529]
[1752331673182,8.6006,2936.4,2936.3,26.90249]
[1752331673379,9.5856841,2936.4,2936.3,29.55959]
[1752331681089,10.67642822,2936.4,2936.3,29.55959]
[1752331681290,10.67642822,2936.4,2936.3,26.90249]
[1752331681794,10.67642822,2936.4,2936.3,26.88949]
[1752331682484,10.67642822,2936.4,2936.3,29.54659]
[1752331682695,10.67642822,2936.4,2936.3,26.88949]
[1752331683395,10.67642822,2936.4,2936.3,29.54659]
[1752331683790,9.5856841,2936.4,2936.3,29.54659]
[1752331687903,3.2078,2936.4,2936.3,29.54659]
[1752331688195,5.8643,2936.4,2936.3,29.54659]
[1752331690499,6.8288,2936.4,2936.3,29.54659]
[1752331690800,8.6006,2936.4,2936.3,29.54659]
[1752331690999,3.2078,2936.4,2936.3,29.54659]
[1752331691300,8.6006,2936.4,2936.3,29.54659]
[1752331691702,8.6006,2936.4,2936.3,26.88949]
[1752331692296,9.69134412,2936.4,2936.3,24.24589]
[1752331692701,5.3928,2936.1,2936.0,2.25684]
[1752331693004,9.69134412,2936.1,2936.0,25.82184]
[1752331694805,8.6006,2936.1,2936.0,25.82184]
[1752331695299,8.6006,2936.1,2936.0,25.82185]
[1752331696207,9.58526353,2936.1,2936.0,25.82185]
[1752331697505,9.58526353,2936.1,2936.0,24.24596]
[1752331699504,9.58526353,2936.1,2936.0,3.34286]
[1752331699998,9.58526353,2936.1,2936.0,5.80686]
[1752331700195,8.6006,2936.1,2936.0,5.80686]
[1752331711221,3.2078,2936.1,2936.0,5.80686]
[1752331711422,5.7314,2936.1,2936.0,5.80686]
[1752331713120,6.722,2936.1,2936.0,5.80686]
[1752331713322,8.337,2936.1,2936.0,5.80686]
[1752331724128,7.3464,2936.1,2936.0,5.80686]
[1752331725035,8.337,2936.1,2936.0,5.80686]
[1752331727535,7.3464,2936.1,2936.0,5.80686]
[1752331727737,2.5236,2936.1,2936.0,5.80686]
[1752331728234,5.1364,2936.1,2936.0,5.80686]
[1752331736540,5.1364,2936.1,2936.0,3.34286]
[1752331736841,6.12265683,2936.1,2936.0,24.19196]
[1752331737134,1.6932,2935.7,2935.6,2.49289]
[1752331737342,5.1103,2935.7,2935.6,28.32985]
[1752331738935,5.1103,2935.7,2935.6,29.13096]
[1752331739239,5.1103,2935.7,2935.6,29.12996]
[1752331740936,6.20104412,2935.7,2935.3,52.99489]
[1752331741136,5.1103,2935.4,2935.3,49.72313]
[1752331741338,5.1103,2935.4,2935.3,73.22913]
[1752331741541,5.1103,2935.4,2935.3,24.18713]
[1752331741842,1.6932,2934.8,2934.7,0.917]
[1752331742033,6.20104412,2934.8,2934.7,26.74916]
[1752331742342,5.1103,2934.8,2934.7,26.74916]
[1752331743041,5.1103,2934.8,2934.7,29.12616]
[1752331743245,5.1103,2934.8,2934.7,13.19746]
[1752331743438,5.1103,2934.8,2934.7,37.61846]
[1752331743741,2.4975,2934.8,2934.7,37.61846]
[1752331744043,8.3181,2935.0,2934.9,3.24412]
[1752331744242,8.3181,2935.0,2934.9,29.12512]
[1752331745133,8.3181,2935.0,2934.9,37.61842]
[1752331748033,4.1274,2935.5,2935.2,1.6459]
[1752331748232,2.4975,2935.4,2935.3,29.12203]
[1752331748436,3.2078,2935.5,2935.4,5.621]
[1752331748637,4.901,2935.8,2935.7,2.32693]
[1752331748833,7.3985,2935.8,2935.7,29.12293]
[1752331749232,3.2078,2935.8,2935.7,29.12293]
[1752331749433,8.3181,2935.8,2935.7,29.12293]
[1752331750142,8.3181,2935.8,2935.7,37.61623]
[1752331750542,8.3181,2935.8,2935.7,35.23923]
[1752331750740,9.40884412,2935.8,2935.7,9.17433]
[1752331751046,9.40884412,2935.8,2935.7,32.67533]
[1752331751545,9.40884412,2935.8,2935.7,32.67333]
[1752331753537,8.3181,2935.8,2935.7,32.67333]
[1752331757141,5.99174412,2935.8,2935.1,4.22569]
[1752331757345,4.9293,2935.3,2935.2,28.5648]
[1752331757545,4.9293,2935.3,2935.2,29.24595]
[1752331759750,4.9293,2935.3,2935.2,3.23215]
[1752331759944,6.02004412,2935.3,2935.2,0.68115]
[1752331760143,6.02004412,2935.3,2934.9,0.9299]
[1752331760350,5.7688,2935.0,2934.9,1.61112]
[1752331760546,8.1371,2935.0,2934.9,26.71922]
[1752331761546,8.1371,2935.0,2934.9,0.68122]
[1752331761952,8.1371,2935.0,2934.9,24.16822]
[1752331762453,8.1371,2935.0,2934.9,32.66152]
[1752331763654,8.1371,2935.0,2934.9,35.21252]
[1752331764054,8.1371,2935.0,2934.9,37.73532]
[1752331764250,4.1767,2935.3,2935.2,0.68115]
[1752331764449,5.7688,2935.3,2935.2,30.33169412]
[1752331764650,5.7688,2935.3,2935.2,26.71815]
[1752331764955,8.1371,2935.3,2935.2,30.33169412]
[1752331765150,8.1371,2935.3,2935.2,38.82499412]
[1752331765358,8.1371,2935.3,2935.2,37.73425]
[1752331765955,8.1371,2935.3,2935.2,35.21145]
[1752331768257,8.1371,2935.3,2935.2,9.17445]
[1752331768462,8.1371,2935.3,2935.2,32.65745]
[1752331770365,8.81823,2935.3,2935.2,32.65745]
[1752331770760,8.1371,2935.3,2935.2,32.65745]
[1752331771162,8.81823,2935.3,2935.2,9.17445]
[1752331772165,9.80292508,2935.3,2935.2,9.17445]
[1752331773664,9.8029856,2935.3,2935.2,9.17445]
[1752331775673,9.1218556,2935.3,2935.2,9.17445]
[1752331775863,9.1218556,2935.3,2935.2,11.72545]
[1752331776669,9.1193607,2935.3,2935.2,11.72545]
[1752331777167,9.8004907,2935.3,2935.2,11.72545]
[1752331779277,8.8157351,2935.3,2935.2,10.79555]
[1752331779470,8.8157351,2935.3,2935.2,9.17445]
[1752331780368,9.80159029,2935.3,2935.2,9.17445]
[1752331780768,9.80408519,2935.3,2935.2,11.72545]
[1752331781070,10.89482931,2935.3,2935.2,11.72545]
[1752331781275,10.89482931,2935.3,2935.2,10.79555]
[1752331781474,10.89482931,2935.3,2935.2,9.17445]
[1752331782472,10.89482931,2935.3,2935.2,8.4933]
[1752331783372,10.89482931,2935.3,2935.2,9.17445]
[1752331783866,10.89482931,2935.3,2935.2,8.4933]
[1752331784066,10.89482931,2935.3,2935.2,6.38858957]
[1752331784263,15.89482931,2935.3,2935.2,6.38858957]
[1752331784470,10.89482931,2935.3,2935.2,3.79368957]
[1752331784677,10.89482931,2935.3,2935.2,1.19878957]
[1752331786769,9.80408519,2935.3,2935.2,6.12543957]
[1752331786976,10.89482931,2935.3,2935.2,6.12543957]
[1752331787176,10.89482931,2935.3,2935.2,1.19878957]
[1752331792381,51.69482931,2935.3,2935.2,1.19878957]
[1752331796976,51.69482931,2935.3,2935.2,3.78188957]
[1752331798583,51.69482931,2935.3,2935.2,1.19878957]
[1752331800281,52.91302788,2935.3,2935.2,1.19878957]
[1752331800678,2.03291,2934.6,2934.5,5.86788]
[1752331800983,7.28905412,2934.6,2934.5,5.1866]
[1752331801282,8.13375412,2934.6,2934.5,3.26441]
[1752331801484,7.28905412,2934.6,2934.5,4.92681]
[1752331801879,7.28905412,2934.6,2934.5,5.86791]
[1752331802075,7.28905412,2934.6,2934.5,5.1866]
[1752331802280,8.13375412,2934.6,2934.5,4.2455]
[1752331802480,9.11919395,2934.6,2934.5,4.2455]
[1752331803382,9.11919395,2934.6,2934.5,2.5831]
[1752331803583,2.99053,2934.4,2934.3,4.92684]
[1752331803785,4.08127412,2934.4,2934.3,5.86794]
[1752331804586,4.08127412,2934.4,2934.3,5.86796]
[1752331804980,4.92597412,2934.4,2934.3,11.0764]
[1752331805479,4.92597412,2934.4,2934.3,12.7388]
[1752331805981,28.38497412,2934.4,2934.3,12.7388]
[1752331806784,0.9576,2934.4,2934.3,14.36126]
[1752331807083,25.09693,2934.4,2934.3,14.36126]
[1752331807484,24.4156,2934.4,2934.3,14.36126]
[1752331807684,0.9576,2934.4,2934.3,14.36126]
[1752331807880,23.457,2934.5,2934.4,2.34373]
[1752331808084,24.4146,2934.5,2934.4,5.86793]
[1752331808683,4.1654,2934.6,2934.5,2.34371]
[1752331808985,5.14943715,2934.6,2934.5,5.86791]
[1752331810679,5.14943715,2934.6,2934.5,14.36121]
[1752331813385,5.83072715,2934.6,2934.5,14.36121]
[1752331813590,7.18232715,2934.6,2934.5,14.36121]
[1752331813790,6.50103715,2934.6,2934.5,14.36121]
[1752331814494,7.18232715,2934.6,2934.5,14.36121]
[1752331815281,6.50103715,2934.6,2934.5,14.36121]
[1752331815689,4.19183715,2934.6,2934.5,14.36121]
[1752331815889,7.14522715,2934.6,2934.5,14.36121]
[1752331816282,7.94992715,2934.6,2934.5,11.0764]
[1752331818396,7.94992715,2934.6,2934.5,8.4933]
[1752331818592,1.96876,2934.3,2934.2,2.3962]
[1752331818894,9.04074127,2934.3,2934.2,2.3962]
[1752331819088,32.49074127,2934.3,2934.2,2.3962]
[1752331819489,32.49074127,2934.3,2934.2,4.1187]
[1752331819890,31.68504127,2934.3,2934.2,5.0306]
[1752331820691,31.68504127,2934.3,2934.2,5.71198]
[1752331821295,5.17653715,2934.3,2934.2,5.71198]
[1752331821697,4.19183715,2934.3,2934.2,14.20528]
[1752331824200,3.2078,2934.3,2934.2,14.20528]
[1752331826499,4.1925,2934.6,2934.5,0.68131]
[1752331826798,4.19286642,2934.6,2934.5,5.71191]
[1752331827697,3.59656857,2935.1,2935.0,5.7118]
[1752331827902,10.34516857,2935.1,2935.0,5.0306]
[1752331828302,9.12697,2935.1,2935.0,5.0306]
[1752331828597,9.12697,2935.1,2935.0,5.7118]
[1752331828998,1.21819857,2935.2,2935.1,0.68117]
[1752331829205,1.21819857,2935.3,2935.2,5.71175]
[1752331829398,2.91539857,2935.6,2935.5,0.68108]
[1752331829704,6.56224269,2935.6,2935.5,5.71168]
[1752331830100,7.54694269,2935.6,2935.5,5.71168]
[1752331830300,6.32874412,2935.6,2935.5,14.20498]
[1752331831706,6.45986863,2935.6,2935.5,14.20498]
[1752331832396,5.238,2935.6,2935.5,14.20498]
[1752331833201,6.32874412,2935.6,2935.5,14.20498]
[1752331833411,7.00980412,2935.6,2935.5,14.20498]
[1752331833609,6.32874412,2935.6,2935.5,14.20498]
[1752331836111,7.00980412,2935.6,2935.5,14.20498]
[1752331836607,4.905,2935.7,2935.6,2.40356]
[1752331836816,3.2078,2935.7,2935.6,5.71166]
[1752331840415,8.4458,2935.7,2935.6,4.1187]
[1752331840715,2.37826,2935.6,2935.5,10.89687]
[1752331841014,7.00980412,2935.6,2935.5,14.20497]
[1752331841215,7.00980412,2935.6,2935.5,8.4933]
[1752331841416,3.36303,2935.3,2935.2,5.71174]
[1752331841612,7.00987412,2935.3,2935.2,5.71174]
[1752331841913,5.238,2935.0,2934.9,5.71182]
[1752331842216,6.32874412,2935.0,2934.9,5.71182]
[1752331842613,5.238,2935.0,2934.9,5.71182]
[1752331843016,2.6819,2935.0,2934.9,5.71182]
[1752331843220,5.238,2935.2,2935.1,2.40367]
[1752331843512,5.238,2935.2,2935.1,5.98147]
[1752331845220,5.238,2935.2,2935.1,14.47477]
[1752331846120,8.4458,2935.2,2935.1,14.47477]
[1752331846314,9.53654412,2935.2,2935.1,14.47477]
[1752331846619,6.32874412,2935.2,2935.1,14.47477]
[1752331848915,5.238,2935.2,2935.1,14.47477]
[1752331849311,5.91915,2935.2,2935.1,13.8265]
[1752331849511,10.21769412,2935.2,2935.1,14.50767]
[1752331851217,10.21769412,2935.2,2935.1,8.4933]
[1752331856428,11.17553544,2935.2,2935.1,8.4933]
[1752331858124,11.17562536,2935.2,2935.1,8.4933]
[1752331858320,51.97562536,2935.2,2935.1,8.4933]
[1752331859729,75.39262536,2935.2,2935.1,8.4933]
[1752331864524,33.49988124,2935.2,2935.1,14.50767]
[1752331865729,4.1799,2935.5,2935.3,0.68113]
[1752331865931,29.2384,2935.5,2935.4,4.403]
[1752331866126,32.87240221,2935.5,2935.4,5.3332]
[1752331866332,32.87240221,2935.5,2935.4,6.0143]
[1752331867030,33.55348221,2935.5,2935.4,6.0143]
[1752331867231,33.55348221,2935.5,2935.4,5.3332]
[1752331867634,33.55348221,2935.5,2935.4,6.0143]
[1752331869431,32.87240221,2935.5,2935.4,6.0143]
[1752331869927,33.55348221,2935.5,2935.4,6.0143]
[1752331870330,33.55348221,2935.5,2935.4,14.5076]
[1752331872240,32.87240221,2935.5,2935.4,14.5076]
[1752331873129,33.55348221,2935.5,2935.4,14.5076]
[1752331874936,33.55348221,2935.5,2935.4,13.8265]
[1752331875134,33.55348221,2935.5,2935.4,8.4933]
[1752331878334,34.77535084,2935.5,2935.4,8.4933]
[1752331879839,33.55348221,2935.5,2935.4,8.4933]
[1752331881039,33.55348221,2935.5,2935.4,3.461]
[1752331882439,35.38078006,2935.5,2935.4,3.461]
[1752331882640,33.55348221,2935.5,2935.4,3.461]
[1752331882842,35.38078006,2935.5,2935.4,3.461]
[1752331883238,7.04258083,2935.5,2935.4,8.647]
[1752331883437,30.44358083,2935.5,2935.4,9.3281]
[1752331883635,29.22008221,2935.5,2935.4,9.3281]
[1752331884038,28.54000221,2935.5,2935.4,9.3281]
[1752331884235,27.56790221,2935.5,2935.4,9.3281]
[1752331885942,27.56690221,2935.5,2935.4,9.3281]
[1752331886135,28.24798221,2935.5,2935.4,9.3281]
[1752331886440,29.18158221,2935.5,2935.4,9.3281]
[1752331887836,28.50050221,2935.5,2935.4,9.3281]
[1752331888239,29.18158221,2935.5,2935.4,9.3281]
[1752331889345,5.78058221,2935.5,2935.4,9.3281]
[1752331889643,29.17758221,2935.5,2935.4,9.3281]
[1752331889844,30.26832633,2935.5,2935.4,7.6913]
[1752331890248,30.26832633,2935.5,2935.4,5.9381]
[1752331891340,31.49182495,2935.5,2935.4,5.9381]
[1752331891543,31.49182495,2935.5,2935.4,3.461]
[1752331893145,30.26832633,2935.5,2935.4,3.461]
[1752331894148,30.26832633,2935.5,2935.4,5.9381]
[1752331894346,6.87132633,2935.5,2935.4,7.6913]
[1752331894547,31.48878622,2935.5,2935.4,8.647]
[1752331894744,31.48878622,2935.5,2935.4,7.6913]
[1752331895342,30.26532633,2935.5,2935.4,7.6913]
[1752331895541,31.48877521,2935.5,2935.4,7.6913]
[1752331896349,30.26532633,2935.5,2935.4,7.6913]
[1752331896750,31.48873123,2935.5,2935.4,7.6913]
[1752331897351,30.26532633,2935.5,2935.4,7.6913]
[1752331899754,30.26532633,2935.5,2935.4,3.461]
[1752331900054,32.09262418,2935.5,2935.4,3.461]
[1752331900748,33.3159699,2935.5,2935.4,3.461]
[1752331900955,31.48867205,2935.5,2935.4,3.461]
[1752331901552,28.28087205,2935.5,2935.4,3.461]
[1752331901743,31.48867205,2935.5,2935.4,3.461]
[1752331902747,30.26532633,2935.5,2935.4,8.64e-06]
[1752331903254,0.68118,2935.1,2935.0,2.4771]
[1752331903551,30.26142633,2935.1,2935.0,2.4771]
[1752331903747,30.26142633,2935.1,2935.0,4.2303]
[1752331903953,30.34992633,2935.1,2935.0,4.2303]
[1752331905847,1.70316,2934.8,2934.3,4.87335]
[1752331906047,0.68134,2934.4,2934.3,4.87335]
[1752331906246,0.68134,2934.4,2934.3,4.192]
[1752331906547,1.67484,2934.4,2934.3,5.1356]
[1752331906750,1.76334,2934.4,2934.3,5.1356]
[1752331907147,2.72271793,2934.4,2934.3,4.192]
[1752331907556,2.72271793,2934.4,2934.3,13.6289]
[1752331908059,7.77801793,2934.4,2934.3,7.63947]
[1752331908346,9.00117679,2934.4,2934.3,7.63947]
[1752331908653,7.77801793,2934.4,2934.3,7.63947]
[1752331909448,31.16701793,2934.4,2934.3,7.63947]
[1752331909852,32.99431578,2934.4,2934.3,7.63947]
[1752331910355,26.16701793,2934.4,2934.3,7.63947]
[1752331910554,2.77801793,2934.4,2934.3,7.63947]
[1752331910753,3.94156456,2934.4,2934.3,12.77507]
[1752331910951,27.33256456,2934.4,2934.3,12.77507]
[1752331911354,26.11371793,2934.4,2934.3,12.77507]
[1752331911556,26.16901793,2934.4,2934.3,10.08977]
[1752331911955,32.38786456,2934.4,2934.3,7.63947]
[1752331912753,27.20446205,2934.4,2934.3,12.77507]
[1752331913163,3.81346205,2934.4,2934.3,12.77507]
[1752331913354,2.72271793,2934.4,2934.3,12.77507]
[1752331913555,26.11271793,2934.4,2934.3,12.77507]
[1752331913751,27.20346205,2934.4,2934.3,12.77507]
[1752331913954,25.03171793,2934.4,2934.3,12.77507]
[1752331914156,24.35037793,2934.4,2934.3,13.45643]
[1752331914463,0.95937793,2934.4,2934.3,13.45643]
[1752331914658,23.391,2934.4,2934.3,13.45643]
[1752331915559,24.07234,2934.4,2934.3,13.45643]
[1752331915957,1.67484,2934.4,2934.3,13.45643]
[1752331916158,25.06484,2934.4,2934.3,12.77507]
[1752331916958,26.07928708,2934.4,2934.3,11.83147]
[1752331919561,26.07928708,2934.4,2934.3,12.77507]
[1752331921160,26.07928708,2934.4,2934.3,11.83147]
[1752331921651,26.11858708,2934.4,2934.3,10.08977]
[1752331923560,26.07928708,2934.4,2934.3,11.83147]
[1752331923859,26.11858708,2934.4,2934.3,6.62383]
[1752331924666,26.11858708,2934.4,2934.3,5.6811]
[1752331924965,26.11858708,2934.4,2934.3,3.71667]
[1752331925166,26.11858708,2934.4,2934.3,1.17752]
[1752331925556,26.11858708,2934.4,2934.0,2.4503]
[1752331925557,0.68141,2934.1,2934.0,1.46078001]
[1752331925766,32.03535412,2934.1,2934.0,3.20248001]
[1752331926067,32.03535412,2934.1,2934.0,1.46078001]
[1752331926969,32.98794444,2934.1,2934.0,1.46078001]
[1752331927567,3.33106,2933.9,2933.8,4.192]
[1752331927768,28.94630412,2933.9,2933.8,4.192]
[1752331927970,29.89889342,2933.9,2933.8,4.192]
[1752331928269,28.76039342,2933.9,2933.8,4.192]
[1752331928471,28.76039342,2933.9,2933.8,5.1356]
[1752331929868,28.76039342,2933.9,2933.8,13.6289]
[1752331930065,28.76039342,2933.9,2933.8,7.53666]
[1752331930066,29.89889342,2933.9,2933.8,7.53666]
[1752331930565,29.89889342,2933.9,2933.8,9.98696]
[1752331931068,29.89889342,2933.9,2933.8,7.53666]
[1752331931470,29.89889342,2933.9,2933.8,6.84765]
[1752331931669,28.8081493,2933.9,2933.8,6.84765]
[1752331931870,69.6081493,2933.9,2933.8,6.84765]
[1752331932463,45.0836493,2933.9,2933.8,11.98325]
[1752331932667,26.0135493,2933.9,2933.8,11.98325]
[1752331933268,25.0200493,2933.9,2933.8,11.98325]
[1752331933569,27.6696493,2933.9,2933.8,11.98325]
[1752331934767,25.0200493,2933.9,2933.8,11.98325]
[1752331936867,27.6238493,2933.9,2933.8,11.98325]
[1752331937973,30.8316493,2933.9,2933.8,11.98325]
[1752331938175,31.9766493,2933.9,2933.8,9.30325]
[1752331938370,31.9766493,2933.9,2933.8,6.84765]
[1752331938569,38.19549593,2933.9,2933.8,3.99820139]
[1752331938772,2.87257,2933.4,2933.3,3.34165139]
[1752331939073,31.50770342,2933.4,2933.3,3.34165139]
[1752331939775,5.7647593,2933.4,2933.3,3.34165139]
[1752331939965,29.1477593,2933.4,2933.3,3.34165139]
[1752331940174,31.50670342,2933.4,2933.3,3.34165139]
[1752331940973,32.29959223,2933.4,2933.3,1.66305139]
[1752331941771,32.29959223,2933.4,2933.3,10.15635139]
[1752331941966,31.50699223,2933.4,2933.3,11.83495139]
[1752331946384,31.50699223,2933.4,2933.3,12.74685139]
[1752331946678,32.29959223,2933.4,2933.3,8.4933]
[1752331946984,32.29959223,2933.4,2933.3,12.6275]
[1752331947276,31.50699223,2933.4,2933.3,12.6275]
[1752331948877,32.72722376,2933.4,2933.3,12.6275]
[1752331949082,29.15004811,2933.4,2933.3,13.5394]
[1752331949379,30.24079223,2933.4,2933.3,13.5394]
[1752331949577,4.84224811,2933.4,2933.3,13.5394]
[1752331949776,29.15004811,2933.4,2933.3,13.5394]
[1752331950775,4.16067811,2933.4,2933.3,13.5394]
[1752331950978,24.33787811,2933.4,2933.3,19.221]
[1752331951476,23.385,2933.4,2933.3,19.221]
[1752331951877,27.54470109,2933.4,2933.3,19.221]
[1752331952076,26.5928,2933.4,2933.3,19.221]
[1752331952477,26.5928,2933.4,2933.3,14.221]
[1752331953281,27.5449917,2933.4,2933.3,14.221]
[1752331953785,26.5928,2933.4,2933.3,14.221]
[1752331953988,26.5908,2933.4,2933.3,14.221]
[1752331954678,4.42803153,2934.0,2933.9,4.1342]
[1752331954887,28.2246887,2934.0,2933.9,5.0461]
[1752331955185,28.2246887,2934.0,2933.9,13.5394]
[1752331956285,25.0168887,2934.0,2933.9,13.5394]
[1752331956485,24.3344487,2934.0,2933.9,14.22086]
[1752331957078,0.9524487,2934.0,2933.9,19.22086]
[1752331957485,23.382,2934.1,2934.0,0.68144]
[1752331957680,4.37595412,2934.1,2934.0,4.1342]
[1752331957886,5.73614,2934.0,2933.9,12.6275]
[1752331958081,30.07120245,2934.0,2933.9,12.6275]
[1752331958682,26.01606245,2934.0,2933.9,14.22086]
[1752331958883,26.93886245,2934.0,2933.9,13.5394]
[1752331959083,28.71104657,2934.0,2933.9,13.5394]
[1752331959487,28.02960657,2934.0,2933.9,13.5394]
[1752331960093,5.32904657,2934.0,2933.9,13.5394]
[1752331960591,28.70804657,2934.0,2933.9,13.5394]
[1752331962492,27.78424657,2934.0,2933.9,13.5394]
[1752331962792,28.70704657,2934.0,2933.9,13.5394]
[1752331963695,31.30434657,2934.0,2933.9,12.6275]
[1752331967787,34.51214657,2934.0,2933.9,12.6275]
[1752331976997,34.51214657,2934.0,2933.9,8.4933]
[1752331977993,35.60289069,2934.0,2933.9,8.4933]
[1752331978797,34.51214657,2934.0,2933.9,8.4933]
[1752331979701,36.34249386,2934.0,2933.9,8.4933]
[1752331979897,36.34249386,2934.0,2933.9,6.78883396]
[1752331980095,35.60289069,2934.0,2933.9,6.28463396]
[1752331980496,35.60289069,2934.0,2933.9,5.10083396]
[1752331980697,34.51214657,2934.0,2933.9,5.10083396]
[1752331980902,35.60289069,2934.0,2933.9,5.10083396]
[1752331981404,35.60289069,2934.0,2933.9,3.94203397]
[1752331981602,35.60289069,2934.0,2933.9,2.23739941]
[1752331981804,5.11803,2933.6,2933.5,2.55585485]
[1752331982102,34.71963657,2933.6,2933.5,4.37285485]
[1752331982402,35.94159101,2933.6,2933.5,4.37285485]
[1752331982697,6.0971,2933.3,2933.2,1.10606544]
[1752331982898,34.72070657,2933.3,2933.2,1.10606544]
[1752331983099,1.66074,2932.8,2932.7,1.817]
[1752331983300,25.44174412,2932.8,2932.7,1.817]
[1752331983496,27.96265412,2932.8,2932.7,1.817]
[1752331983898,27.96265412,2932.8,2932.7,4.5406]
[1752331984099,0.68184,2932.3,2932.2,1.817]
[1752331984295,25.44074412,2932.3,2932.2,1.817]
[1752331984499,25.44074412,2932.3,2932.2,4.5406]
[1752331985102,30.55907412,2932.3,2932.2,4.5406]
[1752331985906,29.87724412,2932.3,2932.2,13.0339]
[1752331986095,27.27994412,2932.3,2932.2,13.0339]
[1752331986609,29.87724412,2932.3,2932.2,13.0339]
[1752331986906,23.371,2932.3,2932.2,13.84685]
[1752331987218,7.18807412,2932.3,2932.2,13.0339]
[1752331987500,33.76887412,2932.3,2932.2,10.3103]
[1752331988401,33.76887412,2932.3,2932.2,8.4933]
[1752331990097,33.76887412,2932.3,2932.2,8.3162]
[1752331990301,5.4155,2931.5,2931.4,4.5406]
[1752331990495,5.4155,2931.5,2931.0,3.2078]
[1752331990496,3.5763,2931.4,2931.0,3.2078]
[1752331990702,8.6233,2931.1,2931.0,4.5406]
[1752331990905,31.9973,2931.1,2931.0,4.5406]
[1752331991102,31.9973,2931.1,2931.0,5.22273]
[1752331991303,31.9973,2931.1,2931.0,4.5406]
[1752331991500,31.9973,2931.1,2931.0,5.22273]
[1752331991699,26.5858,2931.1,2931.0,5.35383]
[1752331991903,23.378,2931.1,2931.0,6.44457412]
[1752331992104,24.357,2931.1,2931.0,5.35383]
[1752331992304,29.88424412,2931.1,2931.0,4.5406]
[1752331992809,28.7935,2931.1,2931.0,5.22273]
[1752331993001,26.1962,2931.1,2931.0,5.22273]
[1752331993408,26.1962,2931.1,2931.0,13.71603]
[1752331994410,24.357,2931.1,2931.0,13.84413]
[1752331994601,7.8196,2931.5,2931.4,4.7489]
[1752331994798,31.1976,2931.5,2931.4,4.7489]
[1752331995007,31.1976,2931.5,2931.0,8.4933]
[1752331995210,6.68154412,2931.1,2931.0,10.4204]
[1752331995410,30.06254412,2931.1,2931.0,10.4204]
[1752331995613,30.06254412,2931.1,2931.0,13.92433]
[1752331996014,30.06254412,2931.1,2931.0,13.2422]
[1752331996311,28.9718,2931.1,2931.0,13.92433]
[1752331996611,28.9718,2931.1,2931.0,13.2422]
[1752331996807,29.65391,2931.1,2931.0,13.2422]
[1752331997008,28.9718,2931.1,2931.0,13.2422]
[1752331997310,29.65391,2931.1,2931.0,13.2422]
[1752331997614,28.9718,2931.1,2931.0,4.7489]
[1752331998210,2.7442,2931.1,2931.0,4.7489]
[1752331998412,29.65591,2931.1,2931.0,4.7489]
[1752331999417,6.27291,2931.1,2931.0,4.7489]
[1752331999605,29.65591,2931.1,2931.0,13.2422]
[1752332001808,30.74665412,2931.1,2931.0,13.2422]
[1752332002520,30.74665412,2931.1,2931.0,8.4933]
[1752332003413,29.65591,2931.1,2931.0,8.4933]
[1752332003713,30.74665412,2931.1,2931.0,8.4933]
[1752332005113,30.74665412,2931.1,2931.0,7.58818]
[1752332005318,3.41084,2930.9,2930.4,3.04290445]
[1752332005515,9.41579412,2930.5,2930.4,3.04290445]
[1752332005818,1.70569,2930.4,2929.9,1.9271]
[1752332006013,3.41136,2930.0,2929.9,2.856]